fUSD/lending_fUSD_20251210
["ID","MTS","AMOUNT","RATE_DAILY","PERIOD"]
[398154963,1765405863435,-500.0,0.00041677,60]
[398154964,1765405863444,-500.0,0.00041677,60]
[398154965,1765405863453,-500.0,0.00041678,60]
[398154966,1765405863462,-500.0,0.00041678,60]
[398154967,1765405863471,-500.0,0.00041678,60]
[398154968,1765405863479,-640.74,0.00041678,60]
[398154969,1765405863488,-500.0,0.00041678,60]
[398154970,1765405863497,-500.0,0.00041678,60]
[398154971,1765405863506,-500.0,0.00041678,60]
[398154972,1765405863515,-500.0,0.00041678,60]
[398154973,1765405863524,-500.0,0.00041678,60]
[398154974,1765405863533,-500.0,0.00041678,60]
[398154975,1765405863541,-159.8,0.00041678,60]
[398154976,1765405863550,-500.0,0.00041678,7]
[398154977,1765405863559,-500.0,0.00041678,7]
[398154978,1765405863568,-500.0,0.00041678,7]
[398154979,1765405863577,-500.0,0.00041678,7]
[398154980,1765405863586,-500.0,0.00041678,7]
[398154981,1765405863596,-500.0,0.00041678,7]
[398154982,1765405863604,-500.0,0.00041678,7]
[398154983,1765405863613,-415.81605622,0.00041678,7]
[398154984,1765405863622,-500.0,0.00041678,60]
[398154985,1765405863631,-306.18,0.00041678,60]
[398154986,1765405863644,-500.0,0.00041678,60]
[398154987,1765405863653,-392.3264276,0.00041678,60]
[398154988,1765405863662,-500.0,0.00041678,60]
[398154989,1765405863672,-500.0,0.00041678,60]
[398154990,1765405863682,-500.0,0.00041678,60]
[398154991,1765405863691,-500.0,0.00041678,60]
[398154992,1765405863700,-500.0,0.00041678,60]
[398154993,1765405863710,-500.0,0.00041678,60]
[398154994,1765405863721,-500.0,0.00041678,60]
[398154995,1765405863730,-500.0,0.00041678,60]
[398154996,1765405863738,-500.0,0.00041678,60]
[398154997,1765405863747,-500.0,0.00041678,60]
[398154998,1765405863756,-500.0,0.00041678,60]
[398154999,1765405863765,-500.0,0.00041678,60]
[398155000,1765405863774,-500.0,0.00041678,60]
[398155001,1765405863783,-500.0,0.00041678,60]
[398155002,1765405863791,-500.0,0.00041678,60]
[398155003,1765405863800,-500.0,0.00041678,60]
[398155004,1765405863809,-500.0,0.00041678,60]
[398155005,1765405863818,-500.0,0.00041678,60]
[398155006,1765405863827,-500.0,0.00041678,60]
[398155007,1765405863836,-324.11291305,0.00041678,60]
[398155008,1765405863846,-500.0,0.00041678,60]
[398155009,1765405863855,-500.0,0.00041678,60]
[398155010,1765405863864,-500.0,0.00041678,60]
[398155011,1765405863873,-500.0,0.00041678,60]
[398155012,1765405863882,-500.0,0.00041678,60]
[398155013,1765405863891,-500.0,0.00041678,60]
[398155014,1765405863900,-500.0,0.00041678,60]
[398155015,1765405863909,-500.0,0.00041678,60]
[398155016,1765405863918,-500.0,0.00041678,60]
[398155017,1765405863927,-500.0,0.00041678,60]
[398155018,1765405863935,-500.0,0.00041678,60]
[398155019,1765405863944,-500.0,0.00041678,60]
[398155020,1765405863953,-500.0,0.00041678,60]
[398155021,1765405863962,-500.0,0.00041678,60]
[398155022,1765405863971,-500.0,0.00041678,60]
[398155023,1765405863980,-402.3,0.00041678,60]
[398155024,1765405863989,-1000.0,0.00041678,30]
[398155025,1765405863998,-50000.0,0.00041685,33]
[398155026,1765405864007,-50000.0,0.00041685,34]
[398155027,1765405864015,-50000.0,0.00041685,35]
[398155028,1765405864024,-50000.0,0.00041685,36]
[398155029,1765405864033,-50000.0,0.00041685,37]
[398155030,1765405864041,-50000.0,0.00041685,38]
[398155031,1765405864050,-50000.0,0.00041685,39]
[398155032,1765405864059,-50000.0,0.00041685,40]
[398155033,1765405864068,-213.411502,0.00041686,120]
[398155034,1765405864077,-297.675303,0.00041686,120]
[398155035,1765405864085,-151.0,0.00041686,120]
[398155036,1765405864094,-151.0,0.00041686,120]
[398155037,1765405864103,-151.0,0.00041686,120]
[398155038,1765405864112,-151.0,0.00041686,120]
[398155039,1765405864121,-151.0,0.00041686,120]
[398155040,1765405864130,-151.0,0.00041686,120]
[398155041,1765405864139,-151.0,0.00041686,14]
[398155042,1765405864148,-203.759264,0.00041686,14]
[398155043,1765405864156,-151.0,0.00041686,120]
[398155044,1765405864165,-151.0,0.00041686,120]
[398155045,1765405864174,-151.0,0.00041686,120]
[398155046,1765405864183,-195.792248,0.00041686,120]
[398155047,1765405864191,-151.0,0.00041686,120]
[398155048,1765405864200,-151.0,0.00041686,120]
[398155049,1765405864209,-151.0,0.00041686,120]
[398155050,1765405864218,-151.0,0.00041686,120]
[398155051,1765405864227,-151.0,0.00041686,120]
[398155052,1765405864236,-151.0,0.00041686,120]
[398155053,1765405864244,-151.0,0.00041686,120]
[398155054,1765405864253,-151.0,0.00041686,120]
[398155055,1765405864262,-151.0,0.00041686,120]
[398155056,1765405864270,-151.0,0.00041686,120]
[398155057,1765405864280,-151.0,0.00041686,120]
[398155058,1765405864288,-151.0,0.00041686,120]
[398155059,1765405864298,-151.0,0.00041686,120]
[398155060,1765405864307,-151.0,0.00041686,120]
[398155061,1765405864414,-163.289936,0.00041686,120]
[398155062,1765405864423,-151.0,0.00041686,120]
[398155063,1765405864432,-151.0,0.00041686,120]
[398155064,1765405864441,-500.0,0.00041686,30]
[398155065,1765405864450,-1000.0,0.00041686,60]
[398155066,1765405864459,-248.57412,0.00041686,120]
[398155067,1765405864468,-500.0,0.00041686,60]
[398155068,1765405864476,-248.57412,0.00041686,120]
[398155069,1765405864485,-189.91,0.00041686,60]
[398155070,1765405864494,-248.57412,0.00041686,120]
[398155071,1765405864503,-248.574123,0.00041686,120]
[398155072,1765405864511,-172.527591,0.00041686,120]
[398155073,1765405864520,-172.527591,0.00041686,120]
[398155074,1765405864530,-172.527591,0.00041686,120]
[398155075,1765405864539,-172.527598,0.00041686,120]
[398155076,1765405864548,-500.0,0.00041686,60]
[398155077,1765405864558,-500.0,0.00041686,60]
[398155078,1765405864570,-500.0,0.00041686,60]
[398155079,1765405864580,-412.54,0.00041686,60]
[398155080,1765405864590,-262.17,0.00041686,60]
[398155081,1765405864599,-500.0,0.00041686,60]
[398155082,1765405864608,-500.0,0.00041686,60]
[398155083,1765405864618,-78196198.57964286,0.00041686,7]
[398155084,1765405864628,-4907350.34837318,0.00041686,7]
[398155085,1765405864640,-4943813.54098375,0.00041686,7]
[398155086,1765405864649,-1058640.18256265,0.00041686,7]
[398155087,1765405864658,-496.9091033,0.00041686,3]
[398155088,1765405864667,-1169.23002515,0.00041686,2]
[398155089,1765405864678,-47719.58613574,0.00041686,2]
[398155090,1765405864687,-6925.50896992,0.00041686,4]
[398155091,1765405864696,-5307.27877281,0.00041686,4]
[398155092,1765405864707,-247.71802065,0.00041686,7]
[398155093,1765405864716,-21365538.85761304,0.00041686,7]
[398155094,1765405864725,-2032.06852877,0.00041686,5]
[398155095,1765405864734,-10443223.34637317,0.00041686,7]
[398155096,1765405864890,-578.578,0.00041686,7]
[398155097,1765405864901,-940.372799,0.00041686,7]
[398155098,1765405864914,-457227.10263835,0.00041686,7]
[398155099,1765405864998,-650.0,0.00037849,7]
[398155100,1765405865007,-151.0,0.000388,120]
[398155101,1765405865016,-572.701366,0.00040219,7]
[398155102,1765405865025,-500.0,0.00041095,60]
[398155103,1765405865034,-500.0,0.00041095,60]
[398155104,1765405865043,-500.0,0.00041095,60]
[398155105,1765405865052,-500.0,0.00041095,60]
[398155106,1765405865062,-500.0,0.00041095,60]
[398155107,1765405865072,-287.89755556,0.00041095,60]
[398155108,1765405865089,-212.10244444,0.00041095,60]
[398155109,1765405865098,-207.89755556,0.00041095,60]
[398155110,1765405865109,-292.10244444,0.00041095,60]
[398155111,1765405865119,-500.0,0.00041095,60]
[398155112,1765405865127,-8659.39347556,0.00041686,7]
[398155113,1765405865139,-254.60000336,0.00041686,7]
[398155114,1765405865171,-632616.63411898,0.00041686,7]
[398155116,1765405867815,2500.0,0.0001966,120]
[398155117,1765405869248,300.0,0.0001966,119]
[398155118,1765405871396,195.0,0.0001966,120]
[398155120,1765405879386,-500.0,0.00016999,2]
[398155121,1765405879412,-484.1369789,0.00016999,2]
[398155122,1765405894552,-15.8630211,0.00016999,2]
[398155123,1765405894573,-378.62302761,0.00016999,2]
[398155124,1765405897976,-121.37697239,0.00016999,2]
[398155125,1765405897998,-128.62302761,0.00016999,2]
[398155126,1765405902552,-262.05562248,0.00016999,2]
[398155127,1765405904021,-109.32134991,0.00016999,2]
[398155128,1765405904045,-114.93227237,0.00016999,2]
[398155129,1765405907186,-286.85221084,0.00016999,2]
[398155130,1765405911582,-98.21551679,0.00016999,2]
[398155131,1765405911607,-82.72804969,0.00016999,2]
[398155132,1765405913090,-383.16556999,0.00016999,2]
[398155133,1765405916482,-34.10638032,0.00016999,2]
[398155134,1765405916505,-129.43830699,0.00016999,2]
[398155135,1765405918621,-320.06483356,0.00016999,2]
[398155136,1765405920801,-50.49685945,0.00016999,2]
[398155137,1765405920822,-105.8639052,0.00016999,2]
[398155138,1765405924190,-241.97861846,0.00016999,2]
[398155139,1765405925962,-152.15747634,0.00016999,2]
[398155140,1765405925985,-80.82881504,0.00016999,2]
[398155141,1765405927574,-307.45917061,0.00016999,2]
[398155143,1765405939474,-111.71201435,0.00016999,2]
[398155144,1765405939500,-383.14394847,0.00016999,2]
[398155145,1765405954512,-116.85605153,0.00016999,2]
[398155146,1765405954536,-215.7999122,0.00016999,2]
[398155147,1765405956775,-196.06710316,0.00016999,2]
[398155148,1765405969447,-92.5151367,0.00016999,2]
[398155149,1765405969471,-419.03440298,0.00016999,2]
[398155159,1765406065848,-80.96559702,0.00016999,2]
[398155160,1765406065879,-500.0,0.00016999,2]
[398155161,1765406065908,-500.0,0.00016999,2]
[398155169,1765406107216,250.0,0.000202,30]
[398155170,1765406133160,500.0,0.00016999,2]
[398155175,1765406249259,500.0,0.00016999,2]
[398155176,1765406249515,500.0,0.00016999,2]
[398155179,1765406304667,500.0,0.00016999,2]
[398155180,1765406308382,500.0,0.00016999,2]
[398155181,1765406308618,500.0,0.00016999,2]
[398155183,1765406324071,500.0,0.00016999,2]
[398155191,1765406497805,500.0,0.00016999,2]
[398155199,1765406704456,500.0,0.00016999,2]
[398155202,1765406749449,-496.97798565,0.00017683,2]
[398155203,1765406751698,-360.8100472,0.00017683,2]
[398155204,1765406762123,629.18828695,0.00016999,2]
[398155205,1765406767764,500.0,0.00016999,2]
[398155206,1765406768014,500.0,0.00016999,2]
[398155208,1765406778606,227.43662737,0.00016999,2]
[398155212,1765406882197,500.0,0.00016999,2]
[398155217,1765406956112,-427.24399624,0.00017672,2]
[398155218,1765406956303,-301.0,0.00017772,2]
[398155219,1765406956324,-2218.28678825,0.00017772,2]
[398155220,1765406956344,-500.0,0.00017772,2]
[398155221,1765406956366,-1200.0,0.00017861,2]
[398155222,1765406956387,-550.0,0.00017861,2]
[398155223,1765406956408,-127.77295551,0.00017862,2]
[398155245,1765407031892,-300.0,0.00017861,2]
[398155247,1765407031902,-628.4248536,0.00017861,2]
[398155249,1765407031914,-264.59999972,0.00017861,2]
[398155250,1765407031925,-306.97514668,0.00017861,2]
[398155251,1765407031935,-92.61485332,0.00017861,2]
[398155252,1765407031947,-207.38514668,0.00017861,2]
[398155253,1765407031956,-23.22704449,0.00017862,2]
[398155254,1765407031966,-151.0,0.00017862,2]
[398155255,1765407031976,-151.0,0.00017862,2]
[398155256,1765407031985,-151.0,0.00017862,2]
[398155257,1765407031995,-151.0,0.00017862,2]
[398155258,1765407032005,-151.0,0.00017862,2]
[398155259,1765407032015,-151.0,0.00017862,2]
[398155260,1765407032024,-151.0,0.00017862,2]
[398155261,1765407032034,-151.0,0.00017862,2]
[398155262,1765407032044,-151.0,0.00017862,2]
[398155263,1765407032054,-151.0,0.00017862,2]
[398155264,1765407032067,-151.0,0.00017862,2]
[398155265,1765407032076,-151.0,0.00017862,2]
[398155266,1765407032087,-151.0,0.00017862,2]
[398155267,1765407032096,-151.0,0.00017862,2]
[398155268,1765407032107,-151.0,0.00017862,2]
[398155269,1765407032116,-151.0,0.00017862,2]
[398155270,1765407032126,-151.0,0.00017862,2]
[398155271,1765407032138,-151.0,0.00017862,2]
[398155272,1765407032147,-151.0,0.00017862,2]
[398155273,1765407032157,-1363.7,0.00017862,2]
[398155274,1765407032166,-500.37094928,0.00017873,2]
[398155275,1765407032175,-500.0,0.00017873,2]
[398155277,1765407032185,-500.0,0.00017873,2]
[398155279,1765407032194,-504.02833567,0.00017873,2]
[398155281,1765407032203,-500.0,0.00017873,2]
[398155283,1765407032212,-500.000001,0.00017873,2]
[398155285,1765407032222,-500.0,0.00017873,2]
[398155287,1765407032231,-500.0,0.00017873,2]
[398155289,1765407032240,-500.0,0.00017873,2]
[398155291,1765407032250,-570.54818201,0.00017973,2]
[398155293,1765407032259,-167.51342382,0.00017973,2]
[398155295,1765407032269,-360.8100472,0.00017973,2]
[398155297,1765407032279,-1363.7,0.00018136,2]
[398155299,1765407032288,-1363.7,0.0001841,2]
[398155301,1765407032298,-307.08770607,0.00018421,2]
[398155304,1765407032308,-997.64029733,0.00018421,2]
[398155306,1765407032318,-1000.0,0.00018421,2]
[398155308,1765407032327,-1000.0,0.00018421,2]
[398155310,1765407032338,-1363.7,0.00018684,2]
[398155312,1765407032347,-150.0,0.0001895,2]
[398155314,1765407032356,-1363.7,0.00018958,2]
[398155316,1765407032366,-937.39288535,0.00018968,2]
[398155318,1765407032375,-1500.0,0.00018968,2]
[398155320,1765407032385,-1363.7,0.00019232,2]
[398155322,1765407032394,-250.0,0.00019451,2]
[398155324,1765407032403,-1680.0,0.00019491,2]
[398155326,1765407032413,-420.0,0.00019491,2]
[398155328,1765407032422,-300.0,0.00019491,2]
[398155330,1765407032432,-1363.7,0.00019506,2]
[398155332,1765407032442,-1594.06065809,0.00019516,2]
[398155334,1765407032451,-250.0,0.00019549,2]
[398155336,1765407032460,-250.0,0.00019549,2]
[398155337,1765407032470,-1680.0,0.00019587,2]
[398155340,1765407032479,-427.24399624,0.00019665,2]
[398155341,1765407032489,-1363.7,0.0001978,2]
[398155344,1765407032499,-1363.7,0.00020054,2]
[398155345,1765407032508,-542.0,0.00020253,2]
[398155347,1765407032518,-1363.7,0.00020328,2]
[398155349,1765407032528,-1363.7,0.00020602,2]
[398155351,1765407032538,-1363.73017063,0.00020876,2]
[398155353,1765407032547,-500.0,0.00021171,2]
[398155354,1765407032556,-2184.0,0.0002127,2]
[398155355,1765407032566,-3202.16,0.00021426,2]
[398155356,1765407032575,-541.0,0.0002148,2]
[398155357,1765407032585,-183.04151064,0.00021657,5]
[398155358,1765407032594,-427.24399624,0.00021657,2]
[398155359,1765407032604,-1525.46077561,0.00021657,2]
[398155360,1765407032613,-7757.76620651,0.00021728,2]
[398155361,1765407032622,-1000.0,0.00021756,2]
[398155362,1765407032633,-87361.95,0.00021757,2]
[398155363,1765407032642,-423.31,0.00021757,2]
[398155364,1765407032652,-9999.99,0.00021757,2]
[398155365,1765407032661,-499.99,0.00021757,2]
[398155366,1765407032671,-150.99,0.00021757,2]
[398155367,1765407032681,-4450.91,0.00021757,2]
[398155368,1765407032691,-32028.44,0.00021757,2]
[398155369,1765407032700,-1430.11462167,0.00021928,2]
[398155370,1765407032712,-205.94193535,0.00021928,2]
[398155371,1765407032722,-1452.07611703,0.00022583,2]
[398155372,1765407032733,-1331.93388297,0.00022583,2]
[398155373,1765407032743,-150.0,0.00022861,2]
[398155374,1765407032752,-1729.0,0.00023663,2]
[398155375,1765407032761,-938.55120763,0.0002371,2]
[398155376,1765407032771,-7757.76620646,0.00023934,2]
[398155377,1765407032780,-500.0,0.00025602,7]
[398155378,1765407032790,-867.0,0.00025879,2]
[398155379,1765407032799,-532.0,0.0002593,2]
[398155380,1765407032809,-1383.0,0.00025982,2]
[398155381,1765407032819,-1992.0,0.00026034,2]
[398155382,1765407032839,-1618.05043483,0.00026085,2]
[398155383,1765407032859,-157.94956517,0.00026085,2]
[398155384,1765407032868,-1427.1554225,0.00026141,2]
[398155385,1765407032879,-373.29972738,0.00026141,2]
[398155386,1765407032890,-728.33787106,0.00026141,2]
[398155387,1765407032902,-304.24350998,0.00026141,2]
[398155388,1765407032917,-3002.40558964,0.00026141,2]
[398155392,1765407038084,-1922.3240859,0.00026141,2]
[398155393,1765407038094,-1365.17152611,0.00026812,2]
[398155394,1765407038105,-914.04077809,0.00027093,7]
[398155395,1765407038115,-5415.81202302,0.00027681,3]
[398155396,1765407038125,-375.79404679,0.0002769,60]
[398155397,1765407038135,-500.0,0.0002769,60]
[398155398,1765407038146,-187698.38,0.00027691,2]
[398155399,1765407038155,-6182.87468006,0.00028088,2]
[398155400,1765407038166,-902.63533717,0.00028188,3]
[398155401,1765407038176,-902.63533717,0.00028224,3]
[398155402,1765407038186,-16547.67422603,0.00028234,2]
[398155403,1765407038196,-500.0,0.00028308,2]
[398155404,1765407038206,-500.0,0.00028343,14]
[398155405,1765407038216,-7757.76620646,0.00028347,2]
[398155406,1765407038227,-6182.87468006,0.00029588,2]
[398155407,1765407038237,-902.63533717,0.00029675,3]
[398155408,1765407038247,-271.94809249,0.00029808,2]
[398155409,1765407038257,-7757.76620646,0.00030554,2]
[398155410,1765407038267,-6182.87468006,0.00031088,2]
[398155411,1765407038276,-902.63533717,0.00031163,3]
[398155413,1765407038286,-2784.01,0.00031617,2]
[398155415,1765407038295,-3138.87,0.00032232,2]
[398155417,1765407038305,-6182.87468006,0.00032587,2]
[398155419,1765407038315,-902.63533717,0.0003265,3]
[398155421,1765407038324,-7757.76620646,0.0003276,2]
[398155423,1765407038334,-6182.87468006,0.00034087,2]
[398155425,1765407038343,-902.63533717,0.0003417,3]
[398155426,1765407038352,-2704.649,0.0003418,38]
[398155429,1765407038362,-180.12,0.0003418,38]
[398155431,1765407038371,-7757.76620646,0.00034967,2]
[398155433,1765407038381,-6182.87468006,0.00035587,2]
[398155435,1765407038390,-1317.3,0.00035767,120]
[398155437,1765407038399,-902.63533717,0.00036113,3]
[398155439,1765407038409,-150.0,0.00036123,7]
[398155441,1765407038419,-150.0,0.00036123,7]
[398155443,1765407038428,-150.13424327,0.00036123,7]
[398155445,1765407038438,-150.0,0.00036123,7]
[398155447,1765407038447,-150.1563075,0.00036123,7]
[398155449,1765407038456,-150.0,0.00036123,7]
[398155451,1765407038466,-150.0,0.00036123,7]
[398155453,1765407038475,-150.0,0.00036123,7]
[398155455,1765407038484,-150.0,0.00036123,7]
[398155457,1765407038494,-150.0,0.00036123,7]
[398155459,1765407038503,-150.0,0.00036123,7]
[398155461,1765407038512,-150.0,0.00036123,7]
[398155463,1765407038522,-150.0886242,0.00036123,7]
[398155465,1765407038531,-150.0,0.00036123,7]
[398155467,1765407038540,-150.0,0.00036188,7]
[398155469,1765407038550,-150.0,0.00036249,7]
[398155471,1765407038559,-150.0,0.00036253,7]
[398155473,1765407038568,-150.0,0.00036253,7]
[398155475,1765407038578,-150.0,0.00036253,7]
[398155477,1765407038587,-150.0,0.00036284,7]
[398155479,1765407038596,-150.0,0.00036306,7]
[398155481,1765407038606,-150.0,0.00036317,7]
[398155483,1765407038615,-150.0,0.00036359,7]
[398155485,1765407038625,-150.0,0.00036374,7]
[398155487,1765407038634,-150.0,0.00036382,7]
[398155489,1765407038643,-150.0,0.00036382,7]
[398155490,1765407038652,-150.0,0.00036382,7]
[398155492,1765407038662,-1805.27067434,0.00036443,4]
[398155495,1765407038672,-150.0,0.00036444,7]
[398155497,1765407038682,-150.0,0.00036447,7]
[398155499,1765407038691,-23650.03,0.00036453,2]
[398155500,1765407038701,-150.0,0.00036488,7]
[398155502,1765407038710,-150.0,0.000365,7]
[398155504,1765407038719,-150.0,0.00036512,7]
[398155507,1765407038728,-150.0,0.00036512,7]
[398155508,1765407038738,-150.0,0.00036512,7]
[398155511,1765407038747,-150.0,0.00036576,7]
[398155512,1765407038757,-150.0,0.00036595,7]
[398155515,1765407038766,-150.0,0.00036605,7]
[398155517,1765407038777,-150.0,0.00036625,7]
[398155519,1765407038787,-150.0,0.00036641,7]
[398155521,1765407038796,-150.0,0.00036641,7]
[398155523,1765407038805,-150.0,0.00036641,7]
[398155525,1765407038814,-150.0,0.00036671,7]
[398155527,1765407038824,-150.0,0.00036697,7]
[398155529,1765407038834,-150.0,0.00036697,7]
[398155531,1765407038844,-150.0,0.00036706,7]
[398155533,1765407038854,-150.0,0.0003675,7]
[398155535,1765407038863,-150.0,0.00036765,7]
[398155537,1765407038874,-150.0,0.00036771,7]
[398155539,1765407038884,-150.0,0.00036771,7]
[398155541,1765407038894,-150.0,0.00036771,7]
[398155543,1765407038904,-150.0,0.00036832,7]
[398155545,1765407038913,-150.0,0.00036835,7]
[398155547,1765407038922,-150.0,0.00036853,7]
[398155549,1765407038932,-150.0,0.00036876,7]
[398155551,1765407038942,-150.0,0.000369,7]
[398155553,1765407038951,-150.0,0.000369,7]
[398155555,1765407038961,-150.0,0.000369,7]
[398155557,1765407038970,-150.0,0.00036926,7]
[398155559,1765407038980,-150.0,0.00036926,7]
[398155561,1765407038989,-150.0,0.00036965,7]
[398155563,1765407038998,-150.0,0.00037001,7]
[398155565,1765407039008,-902.63533717,0.0003702,4]
[398155566,1765407039017,-150.0,0.0003703,7]
[398155568,1765407039026,-150.0,0.0003703,7]
[398155570,1765407039036,-150.0,0.0003703,7]
[398155572,1765407039045,-150.0,0.00037035,7]
[398155574,1765407039055,-150.0,0.00037068,7]
[398155576,1765407039069,-150.0,0.00037087,7]
[398155578,1765407039078,-6182.87468006,0.00037087,2]
[398155580,1765407039087,-150.0,0.00037094,7]
[398155582,1765407039097,-150.0,0.00037127,7]
[398155584,1765407039107,-150.0,0.00037127,7]
[398155586,1765407039116,-150.0,0.00037159,7]
[398155588,1765407039126,-150.0,0.00037159,7]
[398155590,1765407039136,-150.0,0.00037159,7]
[398155592,1765407039147,-7757.76620646,0.00037173,2]
[398155594,1765407039156,-150.0,0.00037218,7]
[398155596,1765407039166,-150.0,0.00037224,7]
[398155598,1765407039175,-150.0,0.00037247,7]
[398155601,1765407039185,-150.0,0.00037252,7]
[398155603,1765407039195,-150.0,0.0003727,7]
[398155605,1765407039204,-150.0,0.0003727,7]
[398155607,1765407039213,-150.0,0.00037289,7]
[398155609,1765407039223,-150.0,0.00037289,7]
[398155611,1765407039231,-150.0,0.00037289,7]
[398155613,1765407039241,-150.0,0.00037304,7]
[398155615,1765407039251,-150.0,0.00037353,7]
[398155617,1765407039260,-150.0,0.00037378,7]
[398155619,1765407039269,-150.0,0.000374,7]
[398155620,1765407039277,-150.0,0.00037408,7]
[398155623,1765407039288,-150.0,0.00037418,7]
[398155625,1765407039298,-150.0,0.00037418,7]
[398155627,1765407039307,-150.0,0.00037418,7]
[398155629,1765407039316,-150.0,0.00037483,7]
[398155631,1765407039325,-902.63533717,0.00037493,4]
[398155633,1765407039334,-150.0,0.00037503,7]
[398155635,1765407039343,-150.0,0.0003754,7]
[398155637,1765407039352,-150.0,0.00037548,7]
[398155639,1765407039362,-150.0,0.00037548,7]
[398155641,1765407039371,-150.0,0.00037548,7]
[398155643,1765407039380,-150.0,0.00037568,7]
[398155645,1765407039389,-150.0,0.00037583,7]
[398155647,1765407039399,-150.0,0.00037612,7]
[398155649,1765407039408,-150.0,0.00037628,7]
[398155651,1765407039416,-150.0,0.00037677,7]
[398155653,1765407039426,-150.0,0.00037677,7]
[398155655,1765407039435,-150.0,0.00037677,7]
[398155657,1765407039444,-217.0,0.00037716,7]
[398155659,1765407039454,-150.0,0.00037729,7]
[398155661,1765407039464,-150.0,0.00037729,7]
[398155663,1765407039474,-150.0,0.00037742,7]
[398155665,1765407039483,-150.0,0.00037754,7]
[398155667,1765407039494,-150.0,0.00037765,7]
[398155669,1765407039504,-150.0,0.00037776,7]
[398155671,1765407039513,-150.0,0.00037806,7]
[398155673,1765407039523,-150.0,0.00037806,7]
[398155675,1765407039533,-150.0,0.00037806,7]
[398155677,1765407039542,-150.0,0.00037843,7]
[398155679,1765407039552,-150.0,0.00037843,7]
[398155681,1765407039562,-150.0,0.00037871,7]
[398155683,1765407039572,-150.0,0.00037879,7]
[398155685,1765407039582,-150.0,0.00037889,7]
[398155687,1765407039592,-150.0,0.00037936,7]
[398155690,1765407039603,-150.0,0.00037936,7]
[398155692,1765407039612,-150.0,0.00037936,7]
[398155694,1765407039622,-150.0,0.00037948,7]
[398155696,1765407039631,-150.0,0.00038001,7]
[398155698,1765407039641,-150.0,0.00038005,7]
[398155700,1765407039650,-150.0,0.00038012,7]
[398155702,1765407039659,-150.0,0.0003805,7]
[398155704,1765407039668,-150.0,0.00038065,7]
[398155706,1765407039677,-150.0,0.00038065,7]
[398155708,1765407039686,-150.0,0.00038065,7]
[398155710,1765407039696,-150.0,0.0003813,7]
[398155711,1765407039705,-150.0,0.0003813,7]
[398155714,1765407039715,-150.0,0.0003813,7]
[398155716,1765407039724,-150.0,0.0003813,7]
[398155717,1765407039733,-150.0,0.00038195,7]
[398155719,1765407039744,-150.0,0.00038195,7]
[398155721,1765407039754,-150.0,0.00038195,7]
[398155723,1765407039763,-150.0,0.0003821,7]
[398155726,1765407039773,-150.0,0.00038248,7]
[398155727,1765407039782,-150.0,0.00038256,7]
[398155730,1765407039791,-150.0,0.0003826,7]
[398155732,1765407039800,-150.0,0.00038313,7]
[398155734,1765407039810,-150.0,0.00038324,7]
[398155736,1765407039820,-150.0,0.00038324,7]
[398155738,1765407039829,-150.0,0.00038324,7]
[398155740,1765407039838,-217.0,0.00038339,2]
[398155742,1765407039853,-600.0,0.00038356,30]
[398155744,1765407039862,-150.0,0.00038371,7]